[Event "Juniorallsvenskan 2019, Division 1 and 2"]
[Site "Molnlycke kulturhus, Biblioteksgatan 2, Molnlycke, Sweden"]
[Date "2019.11.23"]
[Round "2.19"]
[White "Lonn, Edvard"]
[Black "Ostenfeld, Valentin"]
[Result "0-1"]
[TimeControl "90 minutes + 30 seconds per move from move one"]
[WhiteFideId "1744712"]
[BlackFideId "1759183"]
[WhiteElo "1387"]
[BlackElo "1856"]

1. d4 {[%clk 01:30:52]} {[%emt 00:00:07]} Nf6 {[%clk 01:30:52]} {[%emt
00:00:07]} 2. Bf4 {[%clk 01:30:49]} {[%emt 00:00:34]} d5 {[%clk 01:31:15]}
{[%emt 00:00:07]} 3. e3 {[%clk 01:30:55]} {[%emt 00:00:24]} Bf5 {[%clk
01:31:20]} {[%emt 00:00:25]} 4. Nf3 {[%clk 01:29:12]} {[%emt 00:02:14]} e6
{[%clk 01:31:42]} {[%emt 00:00:08]} 5. c3 {[%clk 01:29:32]} {[%emt 00:00:09]}
c6 {[%clk 01:31:49]} {[%emt 00:00:22]} 6. Bd3 {[%clk 01:27:44]} {[%emt
00:02:20]} Bxd3 {[%clk 01:32:03]} {[%emt 00:00:16]} 7. Qxd3 {[%clk 01:28:06]}
{[%emt 00:00:08]} Bd6 {[%clk 01:29:51]} {[%emt 00:02:41]} 8. Bxd6 {[%clk
01:16:30]} {[%emt 00:12:07]} Qxd6 {[%clk 01:30:17]} {[%emt 00:00:05]} 9. Ne5
{[%clk 01:16:27]} {[%emt 00:00:32]} Nbd7 {[%clk 01:30:37]} {[%emt 00:00:09]} 10.
f4 {[%clk 01:15:39]} {[%emt 00:01:18]} Ne4 {[%clk 01:30:40]} {[%emt 00:00:27]}
11. Nd2 {[%clk 01:07:53]} {[%emt 00:08:16]} Ndf6 {[%clk 01:27:10]} {[%emt
00:04:00]} 12. Nxe4 {[%clk 01:06:42]} {[%emt 00:01:41]} Nxe4 {[%clk 01:27:21]}
{[%emt 00:00:20]} 13. O-O {[%clk 01:05:36]} {[%emt 00:01:36]} O-O {[%clk
01:27:35]} {[%emt 00:00:15]} 14. Rac1 {[%clk 01:03:14]} {[%emt 00:02:53]} f6
{[%clk 01:26:12]} {[%emt 00:01:52]} 15. Nf3 {[%clk 01:03:08]} {[%emt 00:00:35]}
Rac8 {[%clk 01:24:32]} {[%emt 00:02:10]} 16. c4 {[%clk 00:54:42]} {[%emt
00:08:58]} Qb4 {[%clk 01:18:28]} {[%emt 00:06:33]} 17. b3 {[%clk 00:47:57]}
{[%emt 00:07:16]} a5 {[%clk 01:14:01]} {[%emt 00:04:57]} 18. Rc2 {[%clk
00:42:37]} {[%emt 00:05:50]} Ra8 {[%clk 01:12:59]} {[%emt 00:01:31]} 19. cxd5
{[%clk 00:40:15]} {[%emt 00:02:52]} exd5 {[%clk 01:12:54]} {[%emt 00:00:35]} 20.
Nd2 {[%clk 00:36:24]} {[%emt 00:04:20]} Nxd2 {[%clk 01:07:44]} {[%emt
00:05:40]} 21. Qxd2 {[%clk 00:36:04]} {[%emt 00:00:51]} Qxd2 {[%clk 01:06:06]}
{[%emt 00:02:08]} 22. Rxd2 {[%clk 00:36:28]} {[%emt 00:00:07]} Rfe8 {[%clk
01:05:13]} {[%emt 00:01:21]} 23. Rd3 {[%clk 00:35:58]} {[%emt 00:01:00]} Kf7
{[%clk 01:04:44]} {[%emt 00:01:00]} 24. g4 {[%clk 00:35:24]} {[%emt 00:01:03]}
f5 {[%clk 01:04:30]} {[%emt 00:00:44]} 25. h3 {[%clk 00:34:31]} {[%emt
00:01:23]} Kf6 {[%clk 01:04:39]} {[%emt 00:00:22]} 26. Kg2 {[%clk 00:34:26]}
{[%emt 00:00:35]} fxg4 {[%clk 01:03:45]} {[%emt 00:01:23]} 27. hxg4 {[%clk
00:34:32]} {[%emt 00:00:24]} Rh8 {[%clk 01:03:14]} {[%emt 00:01:02]} 28. Rd2
{[%clk 00:33:51]} {[%emt 00:01:11]} h5 {[%clk 01:03:33]} {[%emt 00:00:11]} 29.
g5+ {[%clk 00:30:50]} {[%emt 00:03:30]} Kf5 {[%clk 01:03:56]} {[%emt 00:00:08]}
30. Kf3 {[%clk 00:30:28]} {[%emt 00:00:52]} Rae8 {[%clk 01:03:49]} {[%emt
00:00:36]} 31. Re2 {[%clk 00:27:57]} {[%emt 00:03:02]} Re6 {[%clk 01:03:08]}
{[%emt 00:01:11]} 32. Rh1 {[%clk 00:27:51]} {[%emt 00:00:36]} g6 {[%clk
01:02:55]} {[%emt 00:00:42]} 33. Rc1 {[%clk 00:26:50]} {[%emt 00:01:30]} b6
{[%clk 01:02:31]} {[%emt 00:00:55]} 34. b4 {[%clk 00:23:21]} {[%emt 00:03:59]}
axb4 {[%clk 01:02:30]} {[%emt 00:00:30]} 35. Rb1 {[%clk 00:23:00]} {[%emt
00:00:52]} c5 {[%clk 01:02:31]} {[%emt 00:00:28]} 36. Rd1 {[%clk 00:22:29]}
{[%emt 00:01:01]} Rd8 {[%clk 01:01:31]} {[%emt 00:01:29]} 37. dxc5 {[%clk
00:21:55]} {[%emt 00:01:06]} bxc5 {[%clk 01:01:54]} {[%emt 00:00:06]} 38. Rc2
{[%clk 00:21:03]} {[%emt 00:01:22]} Rc6 {[%clk 01:01:40]} {[%emt 00:00:44]} 39.
Rcd2 {[%clk 00:20:31]} {[%emt 00:01:02]} Ke6 {[%clk 01:01:57]} {[%emt
00:00:13]} 40. Kg3 {[%clk 00:19:45]} {[%emt 00:01:16]} Rcd6 {[%clk 01:01:59]}
{[%emt 00:00:28]} 41. Rc1 {[%clk 00:19:55]} {[%emt 00:00:20]} c4 {[%clk
01:02:09]} {[%emt 00:00:20]} 42. Rb1 {[%clk 00:18:27]} {[%emt 00:01:59]} Rb8
{[%clk 01:02:16]} {[%emt 00:00:22]} 43. Rd4 {[%clk 00:15:37]} {[%emt 00:03:20]}
c3 {[%clk 01:00:54]} {[%emt 00:01:52]} 44. Rc1 {[%clk 00:15:35]} {[%emt
00:00:32]} Rc6 {[%clk 01:01:03]} {[%emt 00:00:21]} 45. e4 {[%clk 00:14:56]}
{[%emt 00:01:09]} dxe4 {[%clk 01:01:10]} {[%emt 00:00:23]} 46. Rxe4+ {[%clk
00:14:05]} {[%emt 00:01:21]} Kf7 {[%clk 01:01:35]} {[%emt 00:00:05]} 47. Re2
{[%clk 00:12:17]} {[%emt 00:02:19]} b3 {[%clk 01:01:45]} {[%emt 00:00:19]} 48.
axb3 {[%clk 00:11:53]} {[%emt 00:00:54]} Rxb3 {[%clk 01:02:06]} {[%emt
00:00:10]} 49. Re3 {[%clk 00:12:09]} {[%emt 00:00:13]} Rc7 {[%clk 01:01:07]}
{[%emt 00:01:29]} 50. Kf3 {[%clk 00:11:50]} {[%emt 00:00:49]} Ra3 {[%clk
01:01:07]} {[%emt 00:00:30]} 51. Kg3 {[%clk 00:11:39]} {[%emt 00:00:41]} Rc4
{[%clk 01:01:21]} {[%emt 00:00:15]} 52. Kf3 {[%clk 00:11:59]} {[%emt 00:00:10]}
Raa4 {[%clk 01:01:32]} {[%emt 00:00:19]} 53. Rce1 {[%clk 00:11:50]} {[%emt
00:00:40]} Rxf4+ {[%clk 01:01:48]} {[%emt 00:00:14]} 54. Kg3 {[%clk 00:11:45]}
{[%emt 00:00:36]} Rg4+ {[%clk 01:02:09]} {[%emt 00:00:09]} 55. Kh3 {[%clk
00:10:40]} {[%emt 00:01:34]} Rh4+ {[%clk 01:02:13]} {[%emt 00:00:26]} 56. Kg3
{[%clk 00:11:01]} {[%emt 00:00:10]} Rag4+ {[%clk 01:02:35]} {[%emt 00:00:08]}
0-1

[Event "Juniorallsvenskan 2019, Division 1 and 2"]
[Site "Molnlycke kulturhus, Biblioteksgatan 2, Molnlycke, Sweden"]
[Date "2019.11.23"]
[Round "2.20"]
[White "Ekberg, Karl"]
[Black "Saghatelyan, Frunze"]
[Result "1-0"]
[TimeControl "90 minutes + 30 seconds per move from move one"]
[WhiteFideId "1726277"]
[BlackFideId "1752359"]
[WhiteElo "1867"]
[BlackElo "1110"]

1. d4 {[%clk 01:30:55]} {[%emt 00:00:01]} d5 {[%clk 01:30:52]} {[%emt
00:00:08]} 2. c4 {[%clk 01:30:42]} {[%emt 00:00:14]} e6 {[%clk 01:30:57]}
{[%emt 00:00:25]} 3. Nc3 {[%clk 01:31:35]} {[%emt 00:00:06]} Nf6 {[%clk
01:30:40]} {[%emt 00:00:48]} 4. cxd5 {[%clk 01:31:57]} {[%emt 00:00:07]} exd5
{[%clk 01:30:51]} {[%emt 00:00:18]} 5. Bg5 {[%clk 01:32:18]} {[%emt 00:00:10]}
Bf5 {[%clk 01:29:31]} {[%emt 00:01:51]} 6. Qb3 {[%clk 01:28:46]} {[%emt
00:04:01]} Nc6 {[%clk 01:22:20]} {[%emt 00:07:41]} 7. Bxf6 {[%clk 01:24:36]}
{[%emt 00:04:40]} gxf6 {[%clk 01:17:43]} {[%emt 00:05:07]} 8. e3 {[%clk
01:22:01]} {[%emt 00:03:05]} Bb4 {[%clk 01:15:09]} {[%emt 00:03:04]} 9. Bb5
{[%clk 01:07:39]} {[%emt 00:14:53]} Qd6 {[%clk 01:09:43]} {[%emt 00:05:55]} 10.
Nge2 {[%clk 01:05:27]} {[%emt 00:02:42]} O-O {[%clk 01:08:33]} {[%emt
00:01:39]} 11. Ng3 {[%clk 01:03:56]} {[%emt 00:02:02]} Bg6 {[%clk 01:06:50]}
{[%emt 00:02:13]} 12. Bxc6 {[%clk 01:04:06]} {[%emt 00:00:20]} bxc6 {[%clk
01:07:02]} {[%emt 00:00:18]} 13. a3 {[%clk 01:03:51]} {[%emt 00:00:45]} Ba5
{[%clk 01:05:22]} {[%emt 00:02:10]} 14. O-O {[%clk 01:04:03]} {[%emt 00:00:18]}
c5 {[%clk 01:04:25]} {[%emt 00:01:27]} 15. dxc5 {[%clk 01:00:35]} {[%emt
00:03:58]} Qxc5 {[%clk 01:02:52]} {[%emt 00:02:03]} 16. Qxd5 {[%clk 01:00:44]}
{[%emt 00:00:20]} Qxd5 {[%clk 01:00:58]} {[%emt 00:02:25]} 17. Nxd5 {[%clk
01:01:06]} {[%emt 00:00:08]} Kg7 {[%clk 01:01:20]} {[%emt 00:00:08]} 18. Rac1
{[%clk 00:57:37]} {[%emt 00:03:58]} Rab8 {[%clk 00:59:32]} {[%emt 00:02:19]} 19.
b4 {[%clk 00:56:22]} {[%emt 00:01:45]} Bb6 {[%clk 00:56:57]} {[%emt 00:03:05]}
20. Nxc7 {[%clk 00:51:18]} {[%emt 00:05:33]} a5 {[%clk 00:54:18]} {[%emt
00:03:09]} 21. Nd5 {[%clk 00:49:18]} {[%emt 00:02:31]} axb4 {[%clk 00:53:21]}
{[%emt 00:01:27]} 22. axb4 {[%clk 00:49:36]} {[%emt 00:00:12]} Rfd8 {[%clk
00:52:15]} {[%emt 00:01:36]} 23. Rfd1 {[%clk 00:43:55]} {[%emt 00:06:10]} Rd6
{[%clk 00:48:53]} {[%emt 00:03:52]} 24. Ne7 {[%clk 00:44:02]} {[%emt 00:00:23]}
Rxd1+ {[%clk 00:48:20]} {[%emt 00:01:04]} 25. Rxd1 {[%clk 00:44:23]} {[%emt
00:00:08]} Ba7 {[%clk 00:48:13]} {[%emt 00:00:37]} 26. Nc6 {[%clk 00:29:22]}
{[%emt 00:15:31]} Rb7 {[%clk 00:48:08]} {[%emt 00:00:36]} 27. Nxa7 {[%clk
00:29:37]} {[%emt 00:00:16]} Rxa7 {[%clk 00:48:32]} {[%emt 00:00:06]} 28. e4
{[%clk 00:30:00]} {[%emt 00:00:06]} Rc7 {[%clk 00:47:05]} {[%emt 00:01:56]} 29.
Rb1 {[%clk 00:23:34]} {[%emt 00:06:57]} Rc4 {[%clk 00:45:43]} {[%emt 00:01:52]}
30. f3 {[%clk 00:23:35]} {[%emt 00:00:29]} 1-0

[Event "Juniorallsvenskan 2019, Division 1 and 2"]
[Site "Molnlycke kulturhus, Biblioteksgatan 2, Molnlycke, Sweden"]
[Date "2019.11.23"]
[Round "2.21"]
[White "Jonsson, Filip"]
[Black "Johansson, Stina"]
[Result "1-0"]
[TimeControl "90 minutes + 30 seconds per move from move one"]
[WhiteFideId "1739441"]
[BlackFideId "1739026"]
[WhiteElo "1952"]
[BlackElo "1425"]

1. c4 {[%clk 01:29:42]} e5 {[%clk 01:27:02]} 2. g3 {[%clk 01:29:42]} c6 {[%clk
01:27:02]} 3. Nf3 {[%clk 01:29:42]} d6 {[%clk 01:27:02]} 4. Bg2 {[%clk
01:29:42]} Be6 {[%clk 01:27:02]} 5. d3 {[%clk 01:29:42]} Nd7 {[%clk 01:27:02]}
6. Nc3 {[%clk 01:29:42]} Ngf6 {[%clk 01:27:02]} 7. O-O {[%clk 01:29:42]} d5
{[%clk 01:27:02]} 8. cxd5 {[%clk 01:29:42]} cxd5 {[%clk 01:27:02]} 9. Qa4
{[%clk 01:29:42]} Qc7 {[%clk 01:27:02]} 10. Bg5 {[%clk 01:29:42]} Be7 {[%clk
01:27:02]} 11. Nb5 {[%clk 01:29:42]} Qb6 {[%clk 01:27:02]} 12. Nxe5 {[%clk
01:29:42]} O-O {[%clk 01:27:02]} 13. Be3 {[%clk 01:29:42]} Bc5 {[%clk
01:27:02]} 14. d4 {[%clk 01:29:42]} a6 {[%clk 01:27:02]} 15. dxc5 {[%clk
01:29:42]} axb5 {[%clk 01:27:02]} 16. Qxa8 {[%clk 01:29:42]} Rxa8 {[%clk
01:27:02]} 17. cxb6 {[%clk 01:29:42]} Nxe5 {[%clk 01:27:02]} 18. Bd4 {[%clk
01:29:42]} Nfd7 {[%clk 01:27:02]} 19. Rfd1 {[%clk 01:29:42]} Nc4 {[%clk
01:27:02]} 20. e4 {[%clk 01:29:42]} dxe4 {[%clk 01:27:02]} 21. Bxe4 {[%clk
01:29:42]} Rb8 {[%clk 01:27:02]} 22. Rac1 {[%clk 01:29:42]} Ncxb6 {[%clk
01:27:02]} 23. Rc7 {[%clk 01:29:42]} Bxa2 {[%clk 01:27:02]} 24. Bxb6 {[%clk
01:29:42]} Nxb6 {[%clk 01:27:02]} 25. Rxb7 {[%clk 01:29:42]} Re8 {[%clk
01:27:02]} 26. Rxb6 {[%clk 01:29:42]} g6 {[%clk 01:27:02]} 27. Bf3 {[%clk
01:29:42]} Bc4 {[%clk 01:27:02]} 28. Rbd6 {[%clk 01:29:42]} Re5 {[%clk
01:27:02]} 29. Rd7 {[%clk 01:29:42]} Rf5 {[%clk 01:27:02]} 30. Bd5 {[%clk
01:29:42]} Kf8 {[%clk 01:27:02]} 31. Bxc4 {[%clk 01:29:42]} bxc4 {[%clk
01:27:02]} 32. Rc7 {[%clk 01:29:42]} Rb5 {[%clk 01:27:02]} 33. Rdd7 {[%clk
01:29:42]} Rxb2 {[%clk 01:27:02]} 34. Rxf7+ {[%clk 01:29:42]} Kg8 {[%clk
01:27:02]} 35. Rfd7 {[%clk 01:29:42]} Rc2 {[%clk 01:27:02]} 36. Rd8# {[%clk
01:29:42]} {clock times are wrong} 1-0

[Event "Juniorallsvenskan 2019, Division 1 and 2"]
[Site "Molnlycke kulturhus, Biblioteksgatan 2, Molnlycke, Sweden"]
[Date "2019.11.23"]
[Round "2.22"]
[White "Nystedt, Ludvig"]
[Black "Derdic, Valentin"]
[Result "1/2-1/2"]
[TimeControl "90 minutes + 30 seconds per move from move one"]
[WhiteFideId "1759540"]
[BlackFideId "1763687"]
[WhiteElo "1322"]
[BlackElo "1647"]

1. d4 {[%clk 01:30:58]} Nf6 {[%clk 01:30:29]} {[%emt 00:00:31]} 2. c4 {[%clk
01:31:14]} {[%emt 00:00:14]} g6 {[%clk 01:30:49]} {[%emt 00:00:11]} 3. Nc3
{[%clk 01:31:33]} {[%emt 00:00:11]} Bg7 {[%clk 01:30:35]} {[%emt 00:00:42]} 4.
e4 {[%clk 01:31:49]} {[%emt 00:00:16]} d6 {[%clk 01:30:24]} {[%emt 00:00:42]} 5.
g3 {[%clk 01:30:39]} {[%emt 00:01:40]} O-O {[%clk 01:28:41]} {[%emt 00:02:11]}
6. Bg2 {[%clk 01:31:04]} {[%emt 00:00:06]} e5 {[%clk 01:28:28]} {[%emt
00:00:43]} 7. d5 {[%clk 01:31:17]} {[%emt 00:00:17]} a5 {[%clk 01:27:47]}
{[%emt 00:01:11]} 8. Nge2 {[%clk 01:29:22]} {[%emt 00:02:25]} Na6 {[%clk
01:26:38]} {[%emt 00:01:38]} 9. O-O {[%clk 01:25:15]} {[%emt 00:04:38]} Nh5
{[%clk 01:23:55]} {[%emt 00:03:12]} 10. f4 {[%clk 01:22:45]} {[%emt 00:03:01]}
exf4 {[%clk 01:24:19]} {[%emt 00:00:06]} 11. Nxf4 {[%clk 01:22:06]} {[%emt
00:01:08]} Nxf4 {[%clk 01:22:17]} {[%emt 00:02:33]} 12. Bxf4 {[%clk 01:21:14]}
{[%emt 00:01:22]} f5 {[%clk 01:21:25]} {[%emt 00:01:21]} 13. Qd2 {[%clk
01:16:19]} {[%emt 00:05:26]} Bd7 {[%clk 01:05:38]} {[%emt 00:16:17]} 14. Rae1
{[%clk 01:03:42]} {[%emt 00:13:07]} Nc5 {[%clk 00:59:30]} {[%emt 00:06:37]} 15.
e5 {[%clk 00:55:22]} {[%emt 00:08:51]} dxe5 {[%clk 00:58:37]} {[%emt 00:01:22]}
16. Bxe5 {[%clk 00:55:37]} {[%emt 00:00:16]} Bxe5 {[%clk 00:57:56]} {[%emt
00:01:10]} 17. Rxe5 {[%clk 00:55:52]} {[%emt 00:00:15]} Qf6 {[%clk 00:57:57]}
{[%emt 00:00:29]} 18. Rfe1 {[%clk 00:53:29]} {[%emt 00:02:53]} Ne4 {[%clk
00:53:41]} {[%emt 00:04:45]} 19. Qd4 {[%clk 00:48:32]} {[%emt 00:05:28]} Rae8
{[%clk 00:51:38]} {[%emt 00:02:32]} 20. Nxe4 {[%clk 00:46:02]} {[%emt
00:03:00]} Qxe5 {[%clk 00:40:55]} {[%emt 00:11:14]} 21. Qxe5 {[%clk 00:46:14]}
{[%emt 00:00:18]} Rxe5 {[%clk 00:41:17]} {[%emt 00:00:09]} 22. Nf6+ {[%clk
00:45:37]} {[%emt 00:01:06]} Rxf6 {[%clk 00:41:41]} {[%emt 00:00:06]} 23. Rxe5
{[%clk 00:45:59]} {[%emt 00:00:08]} Kf7 {[%clk 00:40:15]} {[%emt 00:01:55]} 24.
Kf2 {[%clk 00:41:07]} {[%emt 00:05:24]} Rb6 {[%clk 00:37:47]} {[%emt 00:02:56]}
1/2-1/2